fUSD/lending_fUSD_20251201
["ID","MTS","AMOUNT","RATE_DAILY","PERIOD"]
[395318358,1764618645658,-150.00000001,0.00016986,2]
[395318359,1764618645667,-238.95743324,0.00016986,2]
[395318360,1764618645677,-260.76603447,0.00016986,2]
[395318361,1764618645686,-150.0,0.00016986,2]
[395318362,1764618645696,-168.22944718,0.00016986,2]
[395318363,1764618645706,-150.0,0.00016986,2]
[395318364,1764618645715,-1292.25888434,0.0001699,2]
[395318365,1764618645725,-1292.25888434,0.0001699,2]
[395318366,1764618645734,-151.0,0.00016997,2]
[395318367,1764618645744,-300.0,0.00016999,2]
[395318368,1764618645753,-1000.6191,0.00016999,2]
[395318369,1764618645762,-300.0,0.00016999,2]
[395318370,1764618645772,-300.0,0.00016999,2]
[395318371,1764618645781,-300.0,0.00016999,2]
[395318372,1764618645790,-300.0,0.00016999,2]
[395318373,1764618645799,-300.0,0.00016999,2]
[395318374,1764618645809,-300.0,0.00016999,2]
[395318375,1764618645819,-2023463.97330592,0.00017,2]
[395318376,1764618645828,-3764716.79884405,0.00017,2]
[395318382,1764618648610,-7914.61371399,0.00017,2]
[395318383,1764618648621,-3864.10583401,0.00017,2]
[395318384,1764618648632,-601.50114901,0.00017,2]
[395318385,1764618648713,-55271.86213119,0.00017,2]
[395318386,1764618648723,-157.594908,0.00017,2]
[395318387,1764618648732,-157.594908,0.00017,2]
[395318388,1764618648741,-157.594908,0.00017,2]
[395318389,1764618648750,-157.594908,0.00017,2]
[395318390,1764618648759,-157.594908,0.00017,2]
[395318391,1764618648769,-157.594908,0.00017,2]
[395318392,1764618648778,-157.594908,0.00017,2]
[395318393,1764618648787,-157.594908,0.00017,2]
[395318394,1764618648796,-151.0,0.00017,2]
[395318395,1764618648806,-151.0,0.00017,2]
[395318396,1764618648815,-151.0,0.00017,2]
[395318397,1764618648824,-151.0,0.00017,2]
[395318398,1764618648833,-151.0,0.00017,2]
[395318399,1764618648843,-151.0,0.00017,2]
[395318400,1764618648852,-151.0,0.00017,2]
[395318401,1764618648861,-151.0,0.00017,2]
[395318402,1764618648870,-151.0,0.00017,2]
[395318403,1764618648879,-210.845958,0.00017,2]
[395318404,1764618648888,-151.0,0.00017,2]
[395318405,1764618648898,-151.0,0.00017,2]
[395318406,1764618648907,-6584.94669,0.00017,2]
[395318407,1764618648917,-151.0,0.00017,2]
[395318408,1764618648927,-297.675303,0.00017,2]
[395318409,1764618648937,-999.0,0.00017027,3]
[395318410,1764618648946,-8325.37,0.00017057,2]
[395318411,1764618648956,-151.0,0.00017071,2]
[395318412,1764618648965,-2663.39,0.00017119,2]
[395318413,1764618648975,-314.92338086,0.00017164,2]
[395318414,1764618648984,-200.0,0.00017173,2]
[395318415,1764618648994,-200.0,0.0001724,2]
[395318416,1764618649003,-200.0,0.0001724,2]
[395318417,1764618649017,-500.0,0.0001724,2]
[395318418,1764618649031,-1258.89,0.0001724,2]
[395318419,1764618649040,-600.0,0.00017249,2]
[395318420,1764618649050,-433.0,0.00017289,2]
[395318421,1764618649061,-300.0,0.00017431,2]
[395318422,1764618649071,-300.0,0.00017431,2]
[395318423,1764618649080,-300.0,0.00017431,2]
[395318424,1764618649090,-300.0,0.00017431,2]
[395318425,1764618649099,-300.0,0.00017431,2]
[395318426,1764618649108,-300.0,0.00017431,2]
[395318427,1764618649118,-300.0,0.00017431,2]
[395318428,1764618649127,-42549.03,0.00017432,2]
[395318429,1764618649136,-166.66,0.00017446,2]
[395318430,1764618649146,-1258.89,0.00017514,2]
[395318431,1764618649155,-500.0,0.00017521,2]
[395318432,1764618649166,-500.0,0.00017521,2]
[395318433,1764618649176,-500.0,0.00017521,2]
[395318434,1764618649185,-500.0,0.00017521,2]
[395318435,1764618649194,-215.57589564,0.00017521,2]
[395318436,1764618649204,-151.3273627,0.00017521,2]
[395318437,1764618649213,-505.82936303,0.00017521,2]
[395318438,1764618649222,-413.11912254,0.00017521,2]
[395318439,1764618649232,-188.49303594,0.00017521,2]
[395318440,1764618649241,-500.0,0.00017521,2]
[395318441,1764618649251,-501.10650118,0.00017521,2]
[395318442,1764618649260,-481.4168575,0.00017521,2]
[395318443,1764618649270,-1000.0,0.00017521,2]
[395318444,1764618649279,-174.58747683,0.00017521,2]
[395318445,1764618649289,-849.04888573,0.00017521,2]
[395318446,1764618649298,-151.0,0.00017619,2]
[395318447,1764618649307,-174.98,0.00017743,2]
[395318448,1764618649317,-160.03289921,0.00017773,2]
[395318449,1764618649327,-500.0,0.00017773,2]
[395318450,1764618649337,-183.87070732,0.00017773,2]
[395318451,1764618649348,-501.4742826,0.00017773,2]
[395318452,1764618649357,-500.0,0.00017773,2]
[395318453,1764618649366,-500.0,0.00017773,2]
[395318454,1764618649376,-500.0,0.00017773,2]
[395318455,1764618649385,-570.14905858,0.00017773,2]
[395318456,1764618649395,-500.0,0.00017773,2]
[395318457,1764618649404,-500.0,0.00017773,2]
[395318458,1764618649413,-500.0,0.00017773,2]
[395318459,1764618649423,-500.0,0.00017773,2]
[395318460,1764618649433,-281.76890158,0.00017773,2]
[395318461,1764618649442,-500.0,0.00017773,2]
[395318462,1764618649451,-200.0,0.00017787,2]
[395318463,1764618649461,-200.0,0.00017788,2]
[395318464,1764618649470,-200.0,0.00017788,2]
[395318465,1764618649479,-500.0,0.00017788,2]
[395318466,1764618649488,-1258.89,0.00017788,2]
[395318467,1764618649497,-600.0,0.00017797,2]
[395318468,1764618649507,-587.0,0.00017799,2]
[395318469,1764618649516,-954.0,0.00017975,2]
[395318470,1764618649525,-166.66,0.00018022,2]
[395318471,1764618649535,-1258.89,0.00018062,2]
[395318472,1764618649544,-1500.0,0.00018068,2]
[395318473,1764618649553,-1000.0,0.00018082,2]
[395318474,1764618649563,-2000.0,0.000181,2]
[395318475,1764618649572,-300.0,0.00018126,2]
[395318476,1764618649581,-300.0,0.00018126,2]
[395318477,1764618649591,-300.0,0.00018126,2]
[395318478,1764618649600,-301.55735151,0.00018126,2]
[395318479,1764618649609,-151.0,0.00018167,2]
[395318480,1764618649619,-207.34062351,0.00018321,2]
[395318481,1764618649629,-1000.0,0.00018321,2]
[395318482,1764618649638,-503.07122512,0.00018321,2]
[395318483,1764618649648,-495.9241853,0.00018321,2]
[395318484,1764618649657,-1000.0,0.00018321,2]
[395318485,1764618649666,-1000.0,0.00018321,2]
[395318486,1764618649675,-485.38331852,0.00018321,2]
[395318487,1764618649685,-1000.0,0.00018321,2]
[395318488,1764618649694,-654.41744648,0.00018321,2]
[395318489,1764618649703,-200.0,0.00018336,2]
[395318490,1764618649712,-200.0,0.00018336,2]
[395318491,1764618649721,-500.0,0.00018336,2]
[395318492,1764618649731,-1258.89,0.00018336,2]
[395318493,1764618649740,-600.0,0.00018345,2]
[395318494,1764618649749,-1000.0,0.00018525,2]
[395318495,1764618649758,-9999.99,0.00018533,2]
[395318496,1764618649768,-150.99,0.00018533,2]
[395318497,1764618649777,-9999.99,0.00018533,2]
[395318498,1764618649787,-174.98,0.00018549,2]
[395318499,1764618649796,-166.66,0.00018598,2]
[395318500,1764618649805,-1258.89,0.0001861,2]
[395318501,1764618649814,-1600.0,0.00018612,2]
[395318502,1764618649824,-1001.51277925,0.00018616,2]
[395318503,1764618649833,-1379.96391513,0.00018726,2]
[395318504,1764618649843,-1000.0,0.0001876,2]
[395318505,1764618649852,-150.74,0.000188,2]
[395318506,1764618649861,-150.74,0.000188,2]
[395318507,1764618649871,-150.74,0.000188,2]
[395318508,1764618649880,-150.74,0.000188,2]
[395318509,1764618649890,-150.74,0.000188,2]
[395318510,1764618649899,-150.74,0.000188,2]
[395318511,1764618649909,-150.74,0.000188,2]
[395318512,1764618649918,-150.74,0.000188,2]
[395318513,1764618649927,-150.74,0.000188,2]
[395318514,1764618649936,-150.74,0.000188,2]
[395318515,1764618649946,-150.74,0.000188,2]
[395318516,1764618649955,-150.74,0.000188,2]
[395318517,1764618649964,-150.74,0.000188,2]
[395318518,1764618649975,-150.74,0.000188,2]
[395318519,1764618649984,-150.74,0.000188,2]
[395318520,1764618649993,-1500.0,0.00018868,2]
[395318521,1764618650004,-1500.0,0.00018868,2]
[395318522,1764618650014,-500.0,0.00018868,2]
[395318523,1764618650025,-200.0,0.00018884,2]
[395318524,1764618650034,-227.93158607,0.00018884,2]
[395318525,1764618650044,-500.0,0.00018884,2]
[395318526,1764618650053,-1258.89,0.00018884,2]
[395318527,1764618650062,-600.0,0.00018893,2]
[395318528,1764618650073,-5137.17392177,0.00019,2]
[395318529,1764618650082,-8803.97728749,0.00019,2]
[395318530,1764618650090,-8803.97728749,0.00019,2]
[395318531,1764618650101,-183.2567971,0.00019,2]
[395318532,1764618650110,-6584.9467,0.00019,2]
[395318533,1764618650120,-1258.89167922,0.00019158,2]
[395318534,1764618650129,-166.66,0.00019174,2]
[395318535,1764618650138,-151.0,0.00019178,2]
[395318536,1764618650147,-156.38118,0.00019178,2]
[395318537,1764618650157,-8802.42114392,0.00019215,2]
[395318538,1764618650174,-865.79999999,0.00019215,2]
[395318539,1764618650185,-2038.41457169,0.00019215,2]
[395318540,1764618650197,-1127.93495063,0.00019215,2]
[395318541,1764618650209,-3278.71412507,0.00019215,2]
[395318542,1764618650219,-174.98,0.00019356,2]
[395318543,1764618650228,-434.82176489,0.00019416,2]
[395318544,1764618650238,-913.91043208,0.00019416,2]
[395318545,1764618650247,-200.0,0.00019432,2]
[395318546,1764618650257,-500.0,0.00019432,2]
[395318547,1764618650266,-1000.0,0.00019438,2]
[395318548,1764618650275,-600.0,0.00019441,2]
[395318549,1764618650285,-823.0,0.00019483,2]
[395318550,1764618650294,-500.0,0.00019687,2]
[395318551,1764618650304,-166.66,0.0001975,2]
[395318552,1764618650313,-529.71367791,0.0001975,2]
[395318553,1764618650325,-3065.64613809,0.0001975,2]
[395318554,1764618650335,-200.0,0.0001998,2]
[395318555,1764618650344,-300.0,0.00019999,2]
[395318556,1764618650354,-300.0,0.00019999,2]
[395318557,1764618650363,-300.0,0.00019999,2]
[395318558,1764618650373,-548.45507992,0.0002,5]
[395318559,1764618650382,-149.52867423,0.0002,4]
[395318560,1764618650393,-349.0,0.0002,4]
[395318561,1764618650404,-379.34214871,0.0002,4]
[395318562,1764618650415,-1155.26977686,0.0002,4]
[395318563,1764618650426,-833.33,0.0002,4]
[395318564,1764618650437,-862.25351101,0.0002,4]
[395318565,1764618650464,-1313.02842631,0.0002,4]
[395318566,1764618650473,-136.99888746,0.0002,14]
[395318567,1764618650484,-15890.16600474,0.0002,14]
[395318568,1764618650493,-2913.45285603,0.0002,7]
[395318569,1764618650502,-524.91436856,0.0002,7]
[395318570,1764618650511,-200.0,0.0002,2]
[395318571,1764618650520,-1000.0,0.00020116,2]
[395318572,1764618650529,-174.98,0.00020162,2]
[395318573,1764618650539,-611.22,0.00020187,2]
[395318574,1764618650548,-200.0,0.000202,2]
[395318575,1764618650557,-500.0,0.00020232,2]
[395318576,1764618650566,-450.05888662,0.0002026,2]
[395318577,1764618650575,-597.89,0.00020299,2]
[395318578,1764618650584,-500.0,0.00020299,2]
[395318579,1764618650593,-500.0,0.00020299,2]
[395318580,1764618650603,-500.0,0.00020299,2]
[395318581,1764618650612,-500.0,0.00020299,2]
[395318582,1764618650621,-500.0,0.00020299,2]
[395318583,1764618650630,-300.0,0.00020299,2]
[395318584,1764618650640,-300.0,0.00020299,2]
[395318585,1764618650649,-166.66,0.00020326,2]
[395318586,1764618650659,-351.62673373,0.00020354,5]
[395318587,1764618650669,-1000.0,0.00020378,2]
[395318588,1764618650679,-200.0,0.00020402,2]
[395318589,1764618650688,-258.87,0.00020411,2]
[395318590,1764618650697,-250.0,0.00020449,2]
[395318591,1764618650707,-1600.0,0.00020473,2]
[395318592,1764618650715,-200.0,0.00020528,2]
[395318593,1764618650724,-1000.0,0.00020795,2]
[395318594,1764618650733,-311.1,0.00020883,2]
[395318595,1764618650743,-197.9592722,0.00020883,2]
[395318596,1764618650752,-248.71531821,0.00020883,2]
[395318597,1764618650761,-151.0,0.00020883,2]
[395318598,1764618650770,-1000.0,0.00020883,2]
[395318599,1764618650779,-151.0,0.00020883,2]
[395318600,1764618650788,-514.84070869,0.00020883,2]
[395318601,1764618650798,-1000.0,0.00020883,2]
[395318602,1764618650807,-1000.0,0.00020883,2]
[395318603,1764618650816,-1000.0,0.00020883,2]
[395318604,1764618650825,-1000.0,0.00020883,2]
[395318605,1764618650834,-151.0,0.00020883,2]
[395318606,1764618650843,-1000.0,0.00020883,2]
[395318607,1764618650852,-1000.0,0.00020883,2]
[395318608,1764618650861,-1000.0,0.00020883,2]
[395318609,1764618650871,-1000.0,0.00020883,2]
[395318610,1764618650880,-1000.0,0.00020883,2]
[395318611,1764618650890,-2750.0,0.00020883,2]
[395318612,1764618650900,-1017.7538111,0.00020883,2]
[395318613,1764618650910,-1000.0,0.00020883,2]
[395318614,1764618650920,-1000.0,0.00020883,2]
[395318615,1764618650929,-1000.0,0.00020883,2]
[395318616,1764618650939,-1000.0,0.00020883,2]
[395318617,1764618650948,-484.67943684,0.00020883,2]
[395318618,1764618650958,-1000.0,0.00020883,2]
[395318619,1764618650968,-1000.0,0.00020883,2]
[395318620,1764618650977,-300.0,0.00020883,2]
[395318621,1764618650986,-1000.0,0.00020883,2]
[395318622,1764618650995,-1000.0,0.00020883,2]
[395318623,1764618651004,-1000.0,0.00020883,2]
[395318624,1764618651015,-1000.0,0.00020883,2]
[395318625,1764618651025,-1000.0,0.00020883,2]
[395318626,1764618651034,-519.22236546,0.00020883,2]
[395318627,1764618651044,-151.0,0.00020883,2]
[395318628,1764618651054,-1012.94247186,0.00020883,2]
[395318629,1764618651064,-151.0,0.00020883,2]
[395318630,1764618651074,-177.80870001,0.00020883,2]
[395318631,1764618651324,-308.77836,0.00020883,2]
[395318632,1764618651386,-156.587,0.00020883,2]
[395318633,1764618651397,-162.86559704,0.00020883,2]
[395318634,1764618651406,-578.20924308,0.00020883,2]
[395318635,1764618651415,-250.0,0.00020883,2]
[395318636,1764618651425,-220.0,0.00020883,2]
[395318637,1764618651434,-220.0,0.00020883,2]
[395318638,1764618651445,-9476.15946739,0.00020883,2]
[395318639,1764618651454,-228.02503116,0.00020883,2]
[395318640,1764618651463,-620.0,0.00020883,2]
[395318641,1764618651473,-250.0,0.00020883,2]
[395318642,1764618651482,-250.0,0.00020883,2]
[395318643,1764618651491,-250.0,0.00020883,2]
[395318644,1764618651500,-250.0,0.00020883,2]
[395318645,1764618651510,-250.0,0.00020883,2]
[395318646,1764618651519,-151.0,0.00020883,2]
[395318647,1764618651529,-2500.0,0.00020883,2]
[395318648,1764618651538,-2500.0,0.00020883,2]
[395318649,1764618651548,-780.83383746,0.00020883,2]
[395318650,1764618651557,-1458.72839442,0.00020883,2]
[395318651,1764618651567,-3000.0,0.00020883,2]
[395318652,1764618651576,-500.0,0.00020883,2]
[395318653,1764618651584,-3000.0,0.00020883,2]
[395318654,1764618651594,-500.0,0.00020883,2]
[395318655,1764618651603,-3000.0,0.00020883,2]
[395318656,1764618651612,-500.0,0.00020883,2]
[395318657,1764618651621,-151.0,0.00020883,2]
[395318658,1764618651631,-3000.0,0.00020883,2]
[395318659,1764618651640,-500.0,0.00020883,2]
[395318660,1764618651651,-3000.0,0.00020883,2]
[395318661,1764618651660,-500.0,0.00020883,2]
[395318662,1764618651670,-3000.0,0.00020883,2]
[395318663,1764618651679,-500.0,0.00020883,2]
[395318664,1764618651688,-3000.0,0.00020883,2]
[395318665,1764618651697,-500.0,0.00020883,2]
[395318666,1764618651706,-3000.0,0.00020883,2]
[395318667,1764618651715,-500.0,0.00020883,2]
[395318668,1764618651724,-500.0,0.00020883,2]
[395318669,1764618651733,-3000.0,0.00020883,2]
[395318670,1764618651742,-500.0,0.00020883,2]
[395318671,1764618651751,-500.0,0.00020883,2]
[395318672,1764618651761,-3000.0,0.00020883,2]
[395318673,1764618651771,-500.0,0.00020883,2]
[395318674,1764618651780,-500.0,0.00020883,2]
[395318675,1764618651789,-500.0,0.00020883,2]
[395318676,1764618651798,-500.0,0.00020883,2]
[395318677,1764618651807,-500.0,0.00020883,2]
[395318678,1764618651816,-382.0011413,0.00020883,2]
[395318679,1764618651825,-500.0,0.00020883,2]
[395318680,1764618651834,-500.0,0.00020883,2]
[395318681,1764618651844,-500.0,0.00020883,2]
[395318682,1764618651853,-425.21848428,0.00020883,2]
[395318683,1764618651863,-2750.0,0.00020938,2]
[395318684,1764618651872,-174.98,0.00020969,2]
[395318685,1764618651881,-2750.0,0.00020993,2]
[395318686,1764618651890,-6584.9467,0.00021,2]
[395318687,1764618651900,-2750.0,0.00021048,2]
[395318688,1764618651909,-300.0,0.00021096,2]
[395318689,1764618651918,-300.0,0.00021096,2]
[395318690,1764618651927,-2100.62933685,0.00021103,2]
[395318691,1764618651940,-649.37066315,0.00021103,2]
[395318692,1764618651950,-359.0,0.00021146,2]
[395318693,1764618651959,-2750.0,0.00021158,2]
[395318694,1764618651969,-359.0,0.00021193,2]
[395318695,1764618651979,-2750.0,0.00021213,2]
[395318696,1764618651988,-11883.0,0.00021233,2]
[395318697,1764618651998,-359.0,0.00021251,2]
[395318698,1764618652007,-2750.0,0.00021268,2]
[395318699,1764618652020,-359.0,0.00021303,2]
[395318700,1764618652029,-2750.0,0.00021323,2]
[395318701,1764618652039,-1152.0,0.00021326,2]
[395318702,1764618652048,-359.0,0.00021362,2]
[395318703,1764618652058,-359.0,0.00021374,2]
[395318704,1764618652068,-2750.0,0.00021378,2]
[395318705,1764618652077,-500.0,0.00021386,2]
[395318706,1764618652086,-151.0,0.00021431,2]
[395318707,1764618652096,-414.00000001,0.00021431,2]
[395318708,1764618652105,-340.82182115,0.00021431,2]
[395318709,1764618652115,-2750.0,0.00021433,2]
[395318710,1764618652124,-2750.0,0.00021488,2]
[395318711,1764618652133,-4783.12,0.00021507,2]
[395318712,1764618652142,-210.0,0.00021508,2]
[395318713,1764618652152,-210.165,0.00021508,2]
[395318714,1764618652161,-214.613,0.00021508,2]
[395318715,1764618652171,-220.501,0.00021508,2]
[395318716,1764618652180,-154.681,0.00021508,2]
[395318717,1764618652190,-250.0,0.00021508,2]
[395318718,1764618652199,-189.728,0.00021508,2]
[395318719,1764618652208,-162.821,0.00021508,2]
[395318720,1764618652217,-250.0,0.00021508,2]
[395318721,1764618652226,-250.0,0.00021508,2]
[395318722,1764618652235,-210.788,0.00021508,2]
[395318723,1764618652244,-254.894,0.00021508,2]
[395318724,1764618652254,-163.0,0.00021508,2]
[395318725,1764618652263,-359.0,0.00021527,2]
[395318726,1764618652274,-2750.0,0.00021543,2]
[395318727,1764618652283,-359.0,0.00021596,2]
[395318728,1764618652292,-359.0,0.00021696,2]
[395318729,1764618652301,-174.98,0.00021775,2]
[395318730,1764618652311,-2000.0,0.000218,2]
[395318731,1764618652320,-359.0,0.00021824,2]
[395318732,1764618652329,-5000.0,0.00021918,2]
[395318733,1764618652338,-164.396043,0.00021918,2]
[395318734,1764618652348,-262.0,0.00021918,2]
[395318735,1764618652357,-160.578,0.00021973,2]
[395318736,1764618652366,-617.633,0.00021973,2]
[395318737,1764618652376,-3442.0,0.00021973,2]
[395318738,1764618652386,-1603.0,0.00021973,2]
[395318739,1764618652396,-740.057,0.00021973,2]
[395318740,1764618652405,-1263.732,0.00021973,2]
[395318741,1764618652415,-4704.0,0.00021973,2]
[395318742,1764618652424,-252.0,0.00021973,2]
[395318743,1764618652433,-6632.49,0.00021973,2]
[395318744,1764618652442,-359.0,0.00021996,2]
[395318745,1764618652452,-1214.1,0.00022,7]
[395318746,1764618652461,-150.0,0.00022,14]
[395318747,1764618652470,-359.0,0.00022029,2]
[395318748,1764618652479,-597.89,0.00022112,2]
[395318749,1764618652490,-500.0,0.00022112,2]
[395318750,1764618652499,-500.0,0.00022112,2]
[395318751,1764618652509,-500.0,0.00022112,2]
[395318752,1764618652518,-500.0,0.00022112,2]
[395318753,1764618652527,-500.0,0.00022112,2]
[395318754,1764618652537,-174.2164736,0.00022122,2]
[395318755,1764618652546,-359.0,0.00022153,2]
[395318756,1764618652556,-1000.0,0.0002223,2]
[395318757,1764618652565,-322.6107,0.00022252,2]
[395318758,1764618652575,-257.91778498,0.00022252,2]
[395318759,1764618652585,-311.1,0.00022252,2]
[395318760,1764618652595,-151.0,0.00022252,2]
[395318761,1764618652605,-151.0,0.00022252,2]
[395318762,1764618652614,-359.0,0.00022281,2]
[395318763,1764618652624,-359.0,0.00022294,2]
[395318764,1764618652633,-262.0,0.00022329,2]
[395318765,1764618652643,-1600.0,0.00022334,2]
[395318766,1764618652653,-359.0,0.00022421,2]
[395318767,1764618652663,-359.0,0.00022436,2]
[395318768,1764618652672,-157.64132353,0.0002245,2]
[395318769,1764618652682,-359.0,0.00022491,2]
[395318770,1764618652692,-359.0,0.00022571,2]
[395318771,1764618652701,-1379.96391513,0.00022596,2]
[395318772,1764618652712,-359.0,0.00022598,2]
[395318773,1764618652721,-258.87,0.00022697,2]
[395318774,1764618652731,-157.594908,0.00022735,2]
[395318775,1764618652740,-157.594908,0.00022735,2]
[395318776,1764618652750,-157.594908,0.00022735,2]
[395318777,1764618652759,-157.594908,0.00022735,2]
[395318778,1764618652769,-151.0,0.00022735,2]
[395318779,1764618652778,-185.901438,0.00022735,2]
[395318780,1764618652788,-151.0,0.00022735,2]
[395318781,1764618652797,-262.0,0.0002274,2]
[395318782,1764618652807,-500.0,0.00022763,2]
[395318783,1764618652816,-359.0,0.00022764,2]
[395318784,1764618652825,-6584.9467,0.00023,2]
[395318785,1764618652835,-359.0,0.0002302,2]
[395318786,1764618652844,-359.0,0.00023063,2]
[395318787,1764618652855,-359.0,0.00023123,2]
[395318788,1764618652864,-262.0,0.00023151,2]
[395318789,1764618652873,-359.0,0.00023174,2]
[395318790,1764618652884,-373.57161234,0.00023286,2]
[395318791,1764618652894,-151.0,0.00023336,2]
[395318792,1764618652903,-151.0,0.00023336,2]
[395318793,1764618652913,-151.0,0.00023336,2]
[395318794,1764618652922,-1613.0,0.00023343,2]
[395318795,1764618652932,-2673.4,0.00023368,2]
[395318796,1764618652941,-504.54343343,0.00023441,2]
[395318797,1764618652951,-262.0,0.00023562,2]
[395318798,1764618652961,-334.5472959,0.00023621,2]
[395318799,1764618652970,-267.46074303,0.00023621,2]
[395318800,1764618652981,-322.6107,0.00023621,2]
[395318801,1764618652990,-599.60298507,0.00023622,2]
[395318802,1764618653000,-1214.1,0.000238,7]
[395318803,1764618653010,-2663.39,0.00023966,2]
[395318804,1764618653023,-262.0,0.00023973,2]
[395318805,1764618653035,-262.0,0.00024384,2]
[395318806,1764618653045,-370.1590998,0.00024512,2]
[395318807,1764618653056,-450.05888662,0.00024596,2]
[395318808,1764618653066,-151.37,0.00024658,30]
[395318809,1764618653076,-151.0,0.00024658,2]
[395318810,1764618653086,-151.0,0.00024658,2]
[395318811,1764618653098,-151.0,0.00024658,2]
[395318812,1764618653109,-151.0,0.00024658,2]
[395318813,1764618653119,-151.0,0.00024658,2]
[395318814,1764618653129,-151.0,0.00024658,2]
[395318815,1764618653140,-151.0,0.00024658,2]
[395318816,1764618653150,-151.0,0.00024658,2]
[395318817,1764618653161,-282.982571,0.00024658,2]
[395318818,1764618653171,-1000.0,0.00024658,2]
[395318819,1764618653181,-262.0,0.00024795,2]
[395318820,1764618653191,-500.0,0.00024803,2]
[395318821,1764618653201,-4783.12,0.00024899,2]
[395318822,1764618653212,-597.89,0.00024899,2]
[395318823,1764618653222,-597.89,0.00024899,2]
[395318824,1764618653232,-500.0,0.00024899,2]
[395318825,1764618653242,-572.16,0.00024899,2]
[395318826,1764618653252,-500.0,0.00024899,2]
[395318827,1764618653262,-500.0,0.00024899,2]
[395318828,1764618653276,-151.0,0.000249,7]
[395318829,1764618653287,-1000.0,0.000249,2]
[395318830,1764618653297,-303949.119703,0.000249,3]
[395318831,1764618653307,-237.196662,0.000249,7]
[395318832,1764618653318,-500.0,0.00024982,2]
[395318833,1764618653327,-346.92554585,0.0002499,2]
[395318834,1764618653337,-277.35679052,0.0002499,2]
[395318835,1764618653347,-334.5472959,0.0002499,2]
[395318836,1764618653358,-6584.9467,0.00025,2]
[395318837,1764618653368,-500.0,0.00025032,7]
[395318838,1764618653379,-262.0,0.00025205,2]
[395318839,1764618653389,-2000.0,0.000255,2]
[395318840,1764618653399,-2258.0,0.00025552,2]
[395318841,1764618653409,-215.73,0.00025604,2]
[395318842,1764618653420,-262.0,0.00025616,2]
[395318843,1764618653430,-1214.1,0.000259,7]
[395318844,1764618653439,-262.0,0.00026027,2]
[395318845,1764618653449,-468.84776493,0.00026165,5]
[395318846,1764618653458,-215.72262182,0.00026227,2]
[395318847,1764618653469,-276.1420041,0.00026359,2]
[395318848,1764618653478,-287.61899177,0.00026359,2]
[395318849,1764618653489,-346.92554585,0.00026359,2]
[395318850,1764618653498,-511.6240237,0.00026361,2]
[395318851,1764618653508,-262.0,0.00026438,2]
[395318852,1764618653518,-1379.96391513,0.00026466,2]
[395318853,1764618653528,-500.0,0.00026576,2]
[395318854,1764618653538,-150.0,0.00026576,2]
[395318855,1764618653547,-500.0,0.00026576,2]
[395318856,1764618653558,-500.0,0.00026576,2]
[395318857,1764618653567,-150.0,0.00026576,2]
[395318858,1764618653579,-500.0,0.00026576,2]
[395318859,1764618653589,-500.0,0.00026576,2]
[395318860,1764618653599,-500.0,0.00026576,2]
[395318861,1764618653609,-500.0,0.00026576,2]
[395318862,1764618653619,-500.0,0.00026576,2]